fUSD/lending_fUSD_20240328
["ID","MTS","AMOUNT","RATE_DAILY","PERIOD"]
[320857143,1711643432817,-691.98202412,0.00048,2]
[320857144,1711643432826,-2000.0,0.00048,120]
[320857145,1711643432836,-78844.01298816,0.00048,15]
[320857146,1711643432845,-164.09,0.00048041,2]
[320857147,1711643432854,-193.0,0.00048062,120]
[320857148,1711643432863,-158.78424725,0.00048074,30]
[320857149,1711643432873,-801.5551924,0.0004808,30]
[320857150,1711643432882,-801.5551924,0.00048132,30]
[320857151,1711643432891,-150.0,0.00048178,2]
[320857152,1711643432901,-509.58,0.00048184,2]
[320857153,1711643432910,-801.5551924,0.00048195,30]
[320857154,1711643432919,-150.99661816,0.00048221,30]
[320857155,1711643432928,-264.67,0.00048239,2]
[320857156,1711643432939,-202.31082468,0.00048332,2]
[320857157,1711643432948,-151.96663148,0.00048354,30]
[320857158,1711643432957,-162.85775373,0.00048409,3]
[320857159,1711643432966,-286.25,0.00048432,15]
[320857160,1711643432975,-200.0,0.00048507,25]
[320857161,1711643432984,-800.0,0.00048507,25]
[320857162,1711643432993,-500.0,0.00048507,30]
[320857163,1711643433003,-200.0,0.00048507,30]
[320857164,1711643433012,-25000.0,0.000486,2]
[320857165,1711643433022,-20000.0,0.000486,2]
[320857166,1711643433031,-150.0,0.000486,9]
[320857167,1711643433041,-150.0,0.00048654,2]
[320857168,1711643433051,-156.79821298,0.00048692,30]
[320857169,1711643433061,-3552.0,0.000487,2]
[320857170,1711643433071,-1033.0,0.000487,117]
[320857171,1711643433080,-150.0,0.00048701,120]
[320857172,1711643433089,-599.32,0.00048737,2]
[320857173,1711643433098,-572.96438381,0.00048761,13]
[320857174,1711643433108,-1727.2681,0.00048788,2]
[320857175,1711643433117,-7847.4355,0.00048797,2]
[320857176,1711643433127,-4918.6528,0.00048797,2]
[320857177,1711643433138,-263.95489345,0.00048798,20]
[320857178,1711643433147,-682.1145,0.00048798,2]
[320857179,1711643433159,-5640.602,0.00048798,2]
[320857180,1711643433168,-314.75638395,0.00048799,2]
[320857181,1711643433177,-156.37175085,0.00048829,30]
[320857182,1711643433188,-164.09,0.00048861,2]
[320857183,1711643433197,-2511.68026685,0.00048874,2]
[320857184,1711643433207,-155.0,0.00048878,2]
[320857185,1711643433216,-5705.89747164,0.00048878,2]
[320857186,1711643433226,-575.61052641,0.00048878,4]
[320857187,1711643433236,-155.63512452,0.00048878,4]
[320857188,1711643433245,-1772.51987212,0.00048878,4]
[320857189,1711643433254,-500.0,0.00048878,4]
[320857190,1711643433263,-959.44777957,0.00048878,4]
[320857191,1711643433272,-14767.16511998,0.0004888,4]
[320857192,1711643433282,-155.0,0.00048896,4]
[320857193,1711643433291,-155.0,0.00048896,4]
[320857194,1711643433300,-2133.85449451,0.00048896,4]
[320857195,1711643433310,-406.69012688,0.00048896,2]
[320857196,1711643433319,-1020.26297848,0.00048896,60]
[320857197,1711643433329,-223.01130519,0.00048897,2]
[320857198,1711643433338,-1203.36847789,0.00048897,4]
[320857199,1711643433347,-5270.35363143,0.00048897,2]
[320857200,1711643433357,-67416.86696932,0.00048897,30]
[320857201,1711643433367,-98394.61122368,0.00048898,2]
[320857202,1711643433376,-8185.48203392,0.00048898,2]
[320857203,1711643433385,-510.55915824,0.00048898,30]
[320857204,1711643433394,-253.58463,0.00048898,44]
[320857205,1711643433403,-6597.8529764,0.00048899,2]
[320857206,1711643433412,-56147.4617856,0.00048899,2]
[320857207,1711643433421,-2178.759086,0.00048899,2]
[320857208,1711643433430,-542.0116424,0.00048965,2]
[320857209,1711643433440,-500.0,0.00049,7]
[320857210,1711643433450,-1000.0,0.00049,120]
[320857211,1711643433459,-500.0,0.0004906,90]
[320857212,1711643433468,-150.0,0.000491,9]
[320857213,1711643433477,-1383.90209896,0.00049175,2]
[320857214,1711643433486,-344.88888889,0.00049205,120]
[320857215,1711643433495,-2503.0,0.000493,2]
[320857216,1711643433504,-969.88330633,0.000493,2]
[320857217,1711643433513,-326.60053978,0.000493,2]
[320857218,1711643433522,-152.0,0.00049304,3]
[320857219,1711643433531,-676.34274683,0.00049315,60]
[320857220,1711643433540,-801.5551924,0.00049339,30]
[320857221,1711643433549,-20071.10760752,0.00049396,7]
[320857222,1711643433558,-320.40012619,0.00049396,4]
[320857223,1711643433567,-158.27708301,0.00049397,120]
[320857224,1711643433576,-871.43442525,0.00049397,10]
[320857225,1711643433585,-155.98337894,0.00049397,4]
[320857226,1711643433594,-23743.58211875,0.00049397,4]
[320857227,1711643433603,-540.54,0.000494,7]
[320857228,1711643433612,-614.37,0.000494,7]
[320857229,1711643433622,-500.0,0.0004942,90]
[320857230,1711643433631,-900.0,0.0004942,90]
[320857231,1711643433644,-500.0,0.0004942,90]
[320857232,1711643433655,-572.96438375,0.00049452,14]
[320857233,1711643433664,-159.13779851,0.00049459,30]
[320857234,1711643433672,-150.0,0.000496,10]
[320857235,1711643433681,-164.09,0.00049681,2]
[320857236,1711643433691,-900.0,0.00049694,90]
[320857237,1711643433701,-314.065624,0.00049698,75]
[320857238,1711643433714,-2511.68026685,0.00049807,2]
[320857239,1711643433723,-344.88888889,0.00049808,120]
[320857240,1711643433732,-159.05,0.00049875,120]
[320857241,1711643433742,-157.032812,0.00049898,77]
[320857242,1711643433751,-400.0,0.000499,18]
[320857243,1711643433760,-801.5551924,0.00049964,30]
[320857244,1711643433770,-500.0,0.00049968,90]
[320857245,1711643433780,-500.0,0.00049968,90]
[320857246,1711643433790,-900.0,0.00049968,90]
[320857247,1711643433800,-426.35447613,0.00049997,2]
[320857248,1711643433809,-319.29071568,0.00049999,120]
[320857249,1711643433818,-500.0,0.00049999,120]
[320857250,1711643433828,-245.01166993,0.00049999,120]
[320857251,1711643433837,-22046.07854594,0.0005,4]
[320857252,1711643433846,-328.66,0.0005,120]
[320857253,1711643433855,-500.0,0.0005,7]
[320857254,1711643433864,-500.0,0.0005,7]
[320857255,1711643433873,-1000.0,0.0005,7]
[320857256,1711643433882,-170365.34351419,0.0005,60]
[320857257,1711643433891,-35161.0,0.0005,120]
[320857258,1711643433901,-155.66866999,0.0005,4]
[320857259,1711643433910,-1999.999998,0.0005,2]
[320857260,1711643433919,-5955.00876146,0.0005,3]
[320857261,1711643433928,-60702.89105628,0.0005,2]
[320857262,1711643433938,-1000.0,0.0005,120]
[320857263,1711643433947,-1647.13275717,0.0005,120]
[320857264,1711643433956,-614.37,0.000501,7]
[320857265,1711643433965,-614.37,0.000501,7]
[320857266,1711643433974,-540.55,0.000501,7]
[320857267,1711643433984,-150.0,0.000501,10]
[320857268,1711643433993,-572.96438375,0.00050143,14]
[320857269,1711643434002,-152.51376111,0.00050184,60]
[320857270,1711643434011,-540.54,0.000502,7]
[320857271,1711643434021,-614.37,0.000502,7]
[320857272,1711643434029,-900.0,0.00050242,90]
[320857273,1711643434039,-801.5551924,0.00050246,60]
[320857274,1711643434048,-801.5551924,0.00050255,60]
[320857275,1711643434057,-344.88888889,0.00050411,120]
[320857276,1711643434067,-564.83175565,0.00050516,90]
[320857277,1711643434076,-500.0,0.00050516,90]
[320857278,1711643434085,-900.0,0.00050516,90]
[320857279,1711643434094,-801.5551924,0.00050522,60]
[320857280,1711643434103,-801.5551924,0.00050557,60]
[320857281,1711643434112,-150.0,0.000506,10]
[320857282,1711643434121,-17594.0,0.000507,120]
[320857283,1711643434130,-2511.68026685,0.0005074,2]
[320857284,1711643434354,-540.54,0.000508,7]
[320857285,1711643434364,-614.37,0.000508,7]
[320857286,1711643434373,-164.37170669,0.000508,2]
[320857287,1711643434383,-572.96438375,0.00050834,14]
[320857288,1711643434392,-151.08183785,0.00050885,60]
[320857289,1711643434401,-540.54,0.000509,7]
[320857290,1711643434410,-800.0,0.000509,18]
[320857291,1711643434419,-765.67045947,0.000509,120]
[320857292,1711643434427,-765.67045947,0.000509,120]
[320857293,1711643434438,-765.67045947,0.000509,120]
[320857294,1711643434447,-765.67045947,0.000509,120]
[320857295,1711643434456,-765.67045947,0.000509,120]
[320857296,1711643434465,-765.67045947,0.000509,120]
[320857297,1711643434474,-765.67045947,0.000509,120]
[320857298,1711643434483,-765.67045947,0.000509,120]
[320857299,1711643434492,-765.67045947,0.000509,120]
[320857300,1711643434501,-765.67045947,0.000509,120]
[320857301,1711643434510,-765.67045947,0.000509,120]
[320857302,1711643434518,-765.67045947,0.000509,120]
[320857303,1711643434527,-176.4002911,0.000509,27]
[320857304,1711643434537,-765.67045947,0.000509,120]
[320857305,1711643434546,-765.67045947,0.000509,120]
[320857306,1711643434555,-765.67045947,0.000509,120]
[320857307,1711643434564,-509.58,0.00050924,2]
[320857308,1711643434573,-1000.0,0.00050974,120]
[320857309,1711643434583,-200.0,0.00050987,2]
[320857310,1711643434592,-2118.13064009,0.00051,60]
[320857311,1711643434601,-600.0,0.00051,52]
[320857312,1711643434611,-8000.0,0.00051,3]
[320857313,1711643434620,-2025.83654558,0.00051,30]
[320857314,1711643434629,-650.0,0.00051,120]
[320857315,1711643434638,-1013.9,0.00051,120]
[320857316,1711643434647,-8114.00956821,0.00051,7]
[320857317,1711643434657,-15033.78186429,0.00051,12]
[320857318,1711643434666,-5064.13123484,0.00051,30]
[320857319,1711643434674,-599.32,0.00051001,2]
[320857320,1711643434684,-344.88888889,0.00051014,120]
[320857321,1711643434694,-500.0,0.00051064,90]
[320857322,1711643434703,-900.0,0.00051064,90]
[320857323,1711643434713,-151.0,0.00051084,14]
[320857324,1711643434723,-151.0,0.00051084,120]
[320857325,1711643434732,-151.0,0.00051084,120]
[320857326,1711643434742,-1060.93195266,0.000511,30]
[320857327,1711643434750,-150.0,0.000511,10]
[320857328,1711643434760,-151.73523494,0.00051125,48]
[320857329,1711643434769,-286.25,0.00051172,120]
[320857330,1711643434778,-151.0,0.00051172,120]
[320857331,1711643434788,-151.0,0.00051172,120]
[320857332,1711643434798,-801.5551924,0.00051173,60]
[320857333,1711643434807,-222.11437442,0.000512,30]
[320857334,1711643434816,-151.0,0.000512,120]
[320857335,1711643434825,-151.0,0.000512,120]
[320857336,1711643434834,-205.651128,0.000512,120]
[320857337,1711643434843,-151.0,0.00051221,120]
[320857338,1711643434852,-151.0,0.00051221,120]
[320857339,1711643434861,-151.0,0.00051221,120]
[320857340,1711643434870,-151.0,0.00051221,120]
[320857341,1711643434879,-151.0,0.00051221,120]
[320857342,1711643434888,-151.0,0.00051221,60]
[320857343,1711643434897,-151.0,0.00051221,120]
[320857344,1711643434906,-784.665454,0.00051221,120]
[320857345,1711643434915,-784.665454,0.00051221,120]
[320857346,1711643434924,-151.0,0.00051221,120]
[320857347,1711643434933,-9369.70260627,0.00051221,8]
[320857348,1711643434977,-70924.0,0.00051221,8]
[320857353,1711643438509,-945.27838354,0.00045735,2]
[320857354,1711643438521,-213.0,0.00046679,2]
[320857355,1711643438532,-765.67045947,0.00050909,120]
[320857356,1711643438543,-229.142747,0.00051221,120]
[320857357,1711643438556,-5026.90840997,0.00051221,8]
[320857358,1711643438570,-1289.66076782,0.00051221,8]
[320857359,1711643438584,-679.75971532,0.00051221,8]
[320857360,1711643438620,-13288.50008537,0.00051221,8]
[320857361,1711643438632,-2155.04859766,0.00051225,28]
[320857362,1711643438643,-156.78544637,0.00051361,60]
[320857363,1711643438655,-540.54,0.000514,7]
[320857364,1711643438666,-614.37,0.000514,7]
[320857365,1711643438678,-7103.79822887,0.0005142,2]
[320857366,1711643438689,-17594.0,0.000515,120]
[320857367,1711643438700,-500.0,0.00051506,120]
[320857368,1711643438714,-500.0,0.00051506,120]
[320857369,1711643438725,-500.0,0.00051506,120]
[320857370,1711643438736,-500.0,0.00051506,120]
[320857371,1711643438747,-500.0,0.00051506,120]
[320857372,1711643438759,-889.02,0.00051506,120]
[320857373,1711643438770,-889.02,0.00051506,120]
[320857374,1711643438782,-889.02,0.00051506,120]
[320857376,1711643438794,-889.02,0.00051506,120]
[320857377,1711643438805,-889.02,0.00051506,120]
[320857380,1711643438817,-572.96438375,0.00051525,14]
[320857382,1711643438829,-150.0,0.000516,10]
[320857384,1711643438842,-1200.0,0.000516,18]
[320857386,1711643438853,-500.0,0.00051612,90]
[320857389,1711643438865,-900.0,0.00051612,90]
[320857391,1711643438876,-344.88888889,0.00051616,120]
[320857393,1711643438887,-800.0,0.00051618,120]
[320857395,1711643438899,-2511.68026685,0.00051673,2]
[320857397,1711643438911,-7111.40309166,0.0005168,120]
[320857400,1711643438922,-5000.0,0.00051684,3]
[320857402,1711643438933,-160.62677764,0.0005169,2]
[320857404,1711643438945,-1600.0,0.000517,18]
[320857406,1711643438957,-2980.26192267,0.000517,49]
[320857409,1711643438968,-3521.80891641,0.000517,2]
[320857411,1711643438979,-702.35033478,0.000517,30]
[320857413,1711643438990,-198.98160708,0.000517,10]
[320857415,1711643439001,-949.80052607,0.000517,120]
[320857417,1711643439012,-660.06056659,0.000517,2]
[320857419,1711643439024,-204.76482717,0.000517,2]
[320857422,1711643439035,-8475.06006247,0.00051701,2]
[320857424,1711643439046,-211.76680074,0.00051701,2]
[320857426,1711643439058,-152.27019616,0.00051702,2]
[320857428,1711643439069,-1932.98111174,0.00051705,2]
[320857431,1711643439080,-2627.58519435,0.00051712,2]
[320857433,1711643439091,-1932.98111174,0.00051714,2]
[320857435,1711643439102,-15077.78915605,0.00051715,2]
[320857449,1711643439297,-27934.9157595,0.00051715,2]
[320857450,1711643439311,-476.69703859,0.00051715,2]
[320857456,1711643442506,-945.27838352,0.00046838,2]
[320857457,1711643442516,-765.67045947,0.00051106,120]
[320857458,1711643442525,-223.01130519,0.0005122,120]
[320857459,1711643442534,-229.142747,0.00051221,120]
[320857460,1711643442544,-26728.27267681,0.00051715,2]
[320857461,1711643442553,-151.0,0.00051715,14]
[320857462,1711643442562,-151.0,0.00051715,120]
[320857463,1711643442571,-151.0,0.00051715,120]
[320857464,1711643442580,-151.0,0.00051715,120]
[320857465,1711643442589,-151.0,0.00051715,120]
[320857466,1711643442598,-151.0,0.00051715,120]
[320857467,1711643442607,-199.652299,0.00051715,120]
[320857468,1711643442616,-485.89900129,0.00051718,2]
[320857469,1711643442625,-211.76680074,0.00051719,2]
[320857470,1711643442634,-1932.98111174,0.0005172,2]
[320857471,1711643442643,-1932.98111174,0.00051721,2]
[320857472,1711643442652,-801.5551924,0.00051724,60]
[320857473,1711643442661,-176.40029099,0.00051732,28]
[320857474,1711643442670,-8475.06006247,0.00051732,2]
[320857475,1711643442679,-8475.06006247,0.00051739,2]
[320857476,1711643442688,-7224.37033056,0.00051741,2]
[320857477,1711643442699,-2627.58519435,0.00051741,2]
[320857478,1711643442709,-7224.37033056,0.00051742,2]
[320857479,1711643442721,-7224.37033056,0.00051745,2]
[320857480,1711643442731,-151.0,0.00051745,120]
[320857481,1711643442740,-784.665454,0.00051745,120]
[320857482,1711643442750,-784.665454,0.00051745,120]
[320857483,1711643442760,-151.0,0.00051745,120]
[320857484,1711643442769,-889.02,0.00051746,120]
[320857485,1711643442778,-70217.67463095,0.00051747,2]
[320857486,1711643442788,-151.0,0.00051747,120]
[320857487,1711643442798,-151.0,0.00051747,120]
[320857488,1711643442807,-151.0,0.00051747,120]
[320857489,1711643442817,-151.0,0.00051747,120]
[320857490,1711643442827,-151.0,0.00051747,60]
[320857491,1711643442836,-229.142747,0.00051747,120]
[320857492,1711643442846,-229.142747,0.00051747,120]
[320857493,1711643442855,-485.89900129,0.00051747,2]
[320857494,1711643442864,-485.89900129,0.00051747,2]
[320857495,1711643442873,-889.02,0.00051748,120]
[320857496,1711643442882,-14161.51855177,0.00051749,30]
[320857497,1711643442895,-239555.53289617,0.00051749,30]
[320857498,1711643442904,-151.0,0.00051749,14]
[320857499,1711643442913,-151.0,0.00051749,120]
[320857500,1711643442922,-151.0,0.00051749,120]
[320857501,1711643442931,-151.0,0.00051749,120]
[320857502,1711643442942,-151.0,0.00051749,120]
[320857503,1711643442951,-151.0,0.00051749,120]
[320857504,1711643442960,-151.0,0.00051749,120]
[320857505,1711643442969,-151.0,0.00051749,60]
[320857506,1711643442978,-198.737675,0.00051749,120]
[320857507,1711643442987,-151.0,0.00051749,120]
[320857508,1711643442997,-151.0,0.00051749,120]
[320857509,1711643443007,-784.665454,0.00051749,120]
[320857510,1711643443017,-151.0,0.00051749,120]
[320857511,1711643443027,-784.665454,0.00051749,120]
[320857512,1711643443037,-151.0,0.00051749,120]
[320857513,1711643443046,-229.142747,0.00051749,120]
[320857515,1711643443055,-229.142747,0.00051749,120]
[320857516,1711643443065,-151.88807247,0.00051754,2]
[320857518,1711643443074,-426.35447613,0.00051762,2]
[320857520,1711643443083,-70217.67463095,0.00051763,2]
[320857522,1711643443093,-3212.25656214,0.00051765,2]
[320857525,1711643443113,-559.40584356,0.00051765,2]
[320857527,1711643443125,-1675.3987996,0.00051765,2]
[320857528,1711643443134,-1531.45712708,0.00051765,2]
[320857529,1711643443546,-14159.8,0.00051765,2]
[320857530,1711643443658,-30663.01326382,0.00051765,2]
[320857531,1711643443668,-1798.7418234,0.00051765,2]
[320857532,1711643443678,-542.0116424,0.00051765,2]
[320857533,1711643443687,-151.88807247,0.00051765,2]
[320857534,1711643443698,-8475.06006247,0.00051766,2]
[320857535,1711643443708,-152.27019616,0.00051769,2]
[320857536,1711643443720,-323.0,0.0005177,15]
[320857537,1711643443729,-297.0,0.0005177,15]
[320857538,1711643443740,-211.76680074,0.00051778,2]
[320857539,1711643443750,-151.88807247,0.00051779,2]
[320857540,1711643443760,-323.0,0.0005178,15]
[320857541,1711643443770,-297.0,0.0005178,15]
[320857542,1711643443779,-1891.40083,0.0005178,25]
[320857543,1711643443789,-152.27019616,0.00051782,2]
[320857544,1711643443799,-151.88807247,0.00051782,2]
[320857545,1711643443809,-70217.67463095,0.00051784,2]
[320857546,1711643443818,-213.11819,0.00051784,120]
[320857547,1711643443827,-208.50283,0.00051784,120]
[320857548,1711643443836,-151.0,0.00051784,120]
[320857549,1711643443845,-151.0,0.00051784,120]
[320857550,1711643443854,-286.027096,0.00051784,120]
[320857551,1711643443864,-151.0,0.00051784,60]
[320857552,1711643443873,-151.0,0.00051784,120]
[320857553,1711643443883,-176.399584,0.00051784,120]
[320857554,1711643443892,-784.665454,0.00051784,120]
[320857556,1711643443901,-166.766126,0.00051784,120]
[320857558,1711643443910,-784.665454,0.00051784,120]
[320857559,1711643443919,-229.142747,0.00051784,120]
[320857561,1711643443928,-229.142747,0.00051784,120]
[320857562,1711643443937,-323.0,0.0005179,15]
[320857563,1711643443947,-297.0,0.0005179,15]
[320857564,1711643443957,-211.76680074,0.0005179,2]
[320857565,1711643443966,-152.27019616,0.0005179,2]
[320857566,1711643443975,-889.02,0.00051794,120]
[320857567,1711643443985,-2627.58519435,0.00051795,2]
[320857568,1711643443995,-7224.37033056,0.00051795,2]
[320857569,1711643444004,-485.89900129,0.00051796,2]
[320857571,1711643444014,-426.35447613,0.00051797,2]
[320857573,1711643444023,-548.84635004,0.00051798,4]
[320857575,1711643444033,-155.25746604,0.00051798,4]
[320857577,1711643444042,-313.07259825,0.00051798,4]
[320857579,1711643444052,-8318.36752526,0.00051798,120]
[320857581,1711643444061,-1000.0,0.00051799,120]
[320857583,1711643444071,-150.0,0.00051799,30]
[320857585,1711643444080,-150.0,0.00051799,30]
[320857587,1711643444089,-889.02,0.00051799,120]
[320857589,1711643444098,-889.02,0.00051799,120]
[320857592,1711643444107,-889.02,0.00051799,120]
[320857593,1711643444116,-889.02,0.00051799,120]
[320857595,1711643444125,-889.02,0.00051799,120]
[320857597,1711643444135,-2627.58519435,0.00051799,2]
[320857599,1711643444144,-13866.37787067,0.000518,2]
[320857602,1711643444157,-726.04743098,0.000518,2]
[320857605,1711643444177,-3892.67707164,0.000518,2]
[320857641,1711643446343,-500.0,0.0005,120]
[320857643,1711643446352,-215.735,0.00051304,120]
[320857653,1711643584480,-273.5962,0.0003,4]
[320857654,1711643584505,-265.18381961,0.0003007,4]
[320857655,1711643584531,-1461.21998039,0.00030999,5]
[320857656,1711643585333,-2000.0,0.00030999,5]
[320857657,1711643585863,-1078.28457286,0.00030999,5]
[320857658,1711643585889,-921.71542714,0.00031,4]
[320857659,1711643586422,-2000.0,0.00031,4]
[320857660,1711643591477,-1000.0,0.00031,4]
[320857661,1711643596274,-1952.0,0.00031,4]
[320857665,1711644263642,-155.0,0.00027518,2]
[320857666,1711644263666,-7188.66409541,0.00027796,5]
[320857667,1711644263690,-4300.63296631,0.00027797,2]
[320857668,1711644263713,-13355.70293828,0.00027798,2]
[320857674,1711644616260,-150.0,0.00027696,2]
[320857675,1711644616282,-1850.0,0.00027696,2]
[320857676,1711644617760,-2000.0,0.00027696,2]
[320857677,1711644617918,-2000.0,0.00027696,2]
[320857678,1711644618371,-2000.0,0.00027696,2]
[320857679,1711644618916,-2000.0,0.00027696,2]
[320857680,1711644619470,-2000.0,0.00027696,2]
[320857681,1711644619979,-2000.0,0.00027696,2]
[320857682,1711644620508,-150.82111548,0.00027696,2]
[320857683,1711644620530,-155.0,0.00027796,2]
[320857684,1711644620554,-1249.19045626,0.00027796,2]
[320857685,1711644620580,-444.98842826,0.00027797,2]
[320857686,1711644621015,-1897.09551086,0.00027797,2]
[320857687,1711644621037,-102.90448914,0.00027798,2]
[320857688,1711644621651,-1361.76231762,0.00027798,2]
[320857689,1711644621674,-155.0,0.00027798,2]
[320857690,1711644621697,-359.56252001,0.00027798,2]
[320857691,1711644621718,-123.67516237,0.00027798,2]
[320857692,1711644622220,-31.32483763,0.00027798,2]
[320857693,1711644622241,-862.3929873,0.00027798,2]
[320857694,1711644622263,-1106.28217507,0.00027798,2]
[320857695,1711644622798,-1347.10563293,0.00027798,2]
[320857696,1711644622819,-652.89436707,0.00027798,2]
[320857700,1711644632415,-1548.99852258,0.00027798,2]
[320857701,1711644632425,-155.0,0.00027798,2]
[320857702,1711644632435,-716.37487076,0.00027898,2]
[320857703,1711644632444,-3304.53057098,0.00030069,4]
[320857704,1711644632457,-545.11341717,0.0003007,4]
[320857705,1711644632466,-210.0,0.00030466,2]
[320857706,1711644632475,-356.6,0.00030898,2]
[320857707,1711644632484,-6901.2,0.00030898,2]
[320857708,1711644632494,-300.0,0.00030898,2]
[320857709,1711644632503,-2239.87,0.00030898,2]
[320857710,1711644632512,-1201.1732,0.00030899,2]
[320857711,1711644632521,-499.99,0.00030899,2]
[320857712,1711644632530,-556.74,0.00030899,2]
[320857713,1711644632540,-168.01861489,0.00030899,2]
[320857714,1711644632549,-14931.86166925,0.00030988,2]
[320857715,1711644632558,-2592.13444037,0.00030997,5]
[320857716,1711644632567,-4300.63296631,0.00030997,2]
[320857717,1711644632576,-2138.90171437,0.00030998,4]
[320857718,1711644632586,-25500.23641127,0.00030998,4]
[320857719,1711644632595,-8776.26907126,0.00031,4]
[320857720,1711644632604,-17035.21366196,0.00031,4]
[320857721,1711644632613,-285.97161265,0.00031,2]
[320857722,1711644632622,-286.98074511,0.00031,4]
[320857723,1711644632632,-938.23441987,0.00031,4]
[320857724,1711644632641,-1129.96929904,0.00031,4]
[320857725,1711644632650,-293.0,0.00033512,2]
[320857726,1711644632659,-150.0,0.00034548,10]
[320857727,1711644632668,-600.0,0.00035,36]
[320857729,1711644632677,-157.0,0.00036863,2]
[320857731,1711644632687,-569.0,0.00037,2]
[320857733,1711644632697,-728.87863177,0.0003885,25]
[320857735,1711644632706,-174.62,0.00039243,30]
[320857737,1711644632715,-159.05,0.00041471,2]
[320857739,1711644632724,-516.0,0.00043595,2]
[320857741,1711644632733,-695.07,0.00045154,2]
[320857743,1711644632742,-1309.94,0.00045333,2]
[320857745,1711644632751,-250.0,0.00045428,2]
[320857748,1711644632760,-717.02,0.00045459,2]
[320857751,1711644632769,-1500.0,0.00045467,120]
[320857753,1711644632778,-152.18,0.00045657,2]
[320857755,1711644632788,-520.0,0.00045728,2]
[320857757,1711644632797,-844.33,0.00045728,2]
[320857759,1711644632806,-2873.95,0.00045851,120]
[320857760,1711644632815,-516.0,0.00045859,2]
[320857761,1711644632824,-398.41,0.0004604,2]
[320857762,1711644632833,-292.21,0.00046364,2]
[320857763,1711644632843,-1296.9,0.00046493,2]
[320857765,1711644632852,-440.12783223,0.00046618,30]
[320857767,1711644632861,-167.01,0.00046712,2]
[320857769,1711644632870,-167.01,0.0004732,2]
[320857771,1711644632879,-3329.84429179,0.00047512,90]
[320857773,1711644632888,-167.01,0.00047929,2]
[320857775,1711644632898,-250.0,0.00047975,120]
[320857778,1711644632909,-691.98202412,0.00048,2]
[320857780,1711644632919,-516.0,0.00048123,2]
[320857782,1711644632930,-157.5993744,0.00048173,30]
[320857784,1711644632940,-717.02,0.00048199,2]
[320857786,1711644632953,-159.05,0.00048488,2]
[320857788,1711644632963,-156.78544636,0.00048522,30]
[320857791,1711644632974,-166.75047222,0.00048525,30]
[320857793,1711644632985,-167.01,0.00048537,2]
[320857795,1711644632995,-512.68757074,0.00048617,30]
[320857797,1711644633005,-232.57,0.00048641,15]
[320857799,1711644633015,-250.0,0.00048671,112]
[320857801,1711644633026,-317.75,0.00048845,30]
[320857803,1711644633035,-264.79,0.00048845,30]
[320857805,1711644633050,-220.66,0.00048845,30]
[320857808,1711644633061,-183.88,0.00048845,30]
[320857810,1711644633071,-153.24,0.00048845,30]
[320857811,1711644633082,-23900.0,0.00048855,2]
[320857812,1711644633092,-512.68757074,0.00048933,30]
[320857813,1711644633101,-167.01,0.00049146,2]
[320857814,1711644633111,-151.08183785,0.0004918,30]
[320857815,1711644633122,-278.207837,0.00049222,25]
[320857816,1711644633132,-158.76931413,0.0004923,30]
[320857817,1711644633142,-766.2,0.0004935,30]
[320857818,1711644633153,-6551.62665526,0.0004936,2]
[320857819,1711644633163,-183.0,0.00049383,2]
[320857820,1711644633173,-512.68757074,0.00049424,30]
[320857821,1711644633184,-166.78,0.00049445,2]
[320857822,1711644633194,-480.0,0.00049461,120]
[320857823,1711644633205,-200.0,0.00049466,30]
[320857824,1711644633215,-800.0,0.00049466,30]